Cogmind - Beta 12 @@@ ROGUE MODE // 2023.07.31 @ 22:06:03 Player: ZOT Result: Smashed by cave-in Performance ------------- Evolutions (1) 500 Regions Visited (3) 600 Robots Destroyed (21) 105 Value Destroyed (509) 509 Prototype IDs (2) 40 Alien Tech Used (0) 0 Bonus (0) 0 TOTAL SCORE: 1754 Bonus ------- None Cogmind --------- Core Integrity 0/400 Matter 277/300 Energy 158/160 System Corruption 5% Temperature Cool (0) Movement Rolling (90) Location -9/Mines Parts ------- > --- POWER (1) -------- Light Nuclear Core > --- PROPULSION (2) --- Wheel Compact Wheel > --- UTILITY (4) ------ Medium Storage Unit Improved Terrain Scanner Terrain Scan Processor > --- WEAPON (2) ------- Improved Light Cannon > --- INVENTORY (10) --- Ion Engine Light Treads Aluminum Leg Aluminum Leg Aluminum Leg Small Storage Unit Sensor Array System Shield Peak State ------------ > --- POWER ------------ Light Nuclear Core > --- PROPULSION ------- Wheel Armored Wheel > --- UTILITY ---------- Medium Storage Unit Improved Terrain Scanner Terrain Scan Processor System Shield > --- WEAPON ----------- Beam Cannon > --- INVENTORY -------- Ion Engine Light Nuclear Core Light Treads Aluminum Leg Aluminum Leg Aluminum Leg Wheel Small Storage Unit Sensor Array System Shield [Rating: 17] Favorites ----------- Power Ion Engine Engine Ion Engine Power Core Light Nuclear Core Propulsion Wheel Treads Light Treads Wheel Wheel Utility Small Storage Unit Device Improved Terrain Scanner Storage Small Storage Unit Processor Terrain Scan Processor Hackware System Shield Weapon Medium Laser Energy Gun Medium Laser Energy Cannon Beam Cannon Ballistic Gun Light Assault Rifle Ballistic Cannon Improved Light Cannon Build | -11 -10 -9 -9 ------- Run | Jun Mat Mat Min Slots Evolved 2 | . . 2 . Power . | . . . . Propulsion . | . . . . Utility 2 | . . 2 . Weapon . | . . . . Parts Attached 39 | 7 3 19 10 Power 5 | . 2 2 1 Engine 3 | . 2 1 . Core 2 | . . 1 1 Reactor . | . . . . Propulsion 19 | 2 1 12 4 Treads 6 | . . 6 . Leg . | . . . . Wheel 13 | 2 1 6 4 Hover . | . . . . Flight . | . . . . Utility 8 | 2 . 3 3 Device 3 | 1 . 1 1 Storage 2 | 1 . . 1 Processor 1 | . . 1 . Hackware 2 | . . 1 1 Protection . | . . . . Artifact . | . . . . Weapon 7 | 3 . 2 2 Energy Gun 1 | 1 . . . Energy Cannon 2 | . . 1 1 Ballistic Gun 3 | 2 . 1 . Ballistic Cannon 1 | . . . 1 Launcher . | . . . . Special Weapon . | . . . . Impact Weapon . | . . . . Slashing Weapon . | . . . . Piercing Weapon . | . . . . Special Melee Weapon . | . . . . Unidentified Prototypes . | . . . . Parts Lost 11 | . . 5 6 Power 2 | . . 1 1 Propulsion 4 | . . 1 3 Utility 3 | . . 2 1 Weapon 2 | . . 1 1 Highest Loss Streak 5 | . . 3 5 To Critical Strikes . | . . . . Average Slot Usage (%) 93 | . 100 95 77 Engine 8 | . 14 8 . Core 2 | . . 1 8 Treads 2 | . . 5 . Wheel 21 | . 28 16 19 Device 15 | . 14 18 11 Storage 12 | . 14 11 11 Processor 6 | . . 11 11 Hackware 1 | . . 1 7 Energy Gun 8 | . 14 8 . Energy Cannon 2 | . . 2 7 Ballistic Gun 9 | . 14 10 . Naked Turns . | . . . . Heaviest Build 20 | 9 14 16 20 Greatest Support 40 | 20 20 40 26 Greatest Overweight (x) 1 | . . 1 1 Average Overweight (x) . | . . . . Largest Inventory Capacity 10 | 8 8 8 10 Average Capacity 8 | 7 8 8 9 Most Carried 10 | 8 8 8 10 Average Carried 7 | 6 7 7 8 Final Capacity 10 | 8 8 8 10 Final Carried 8 | 8 8 8 8 Class Distribution -------------------- 61% | Mutant 30% | Scavenger-Skirmisher 7% | Scavenger-Mutant Dominant Class ---------------- Mutant | -10/Materials Scavenger-Skirmisher | -9/Materials Mutant | -9/Mines Resources | -11 -10 -9 -9 ----------- Run | Jun Mat Mat Min Matter Collected 695 | 293 59 219 124 Remotely . | . . . . Salvage Created 692 | 36 274 277 105 Parts 35 | 4 19 7 5 Haulers Intercepted 1 | . 1 . . Recyclers Shooed 1 | . . 1 . Parts Field Recycled . | . . . . Retrieved Matter . | . . . . Parts Self-Destructed . | . . . . Prevented . | . . . . Kills | -11 -10 -9 -9 ------- Run | Jun Mat Mat Min Combat Hostiles Destroyed 14 | . 4 8 2 Guns 12 | . 4 8 . Cannons 2 | . . . 2 Classes Destroyed 8 | 1 5 2 . Builder 1 | . 1 . . Tunneler 3 | 2 . . 1 Hauler 1 | . 1 . . Mechanic 1 | . 1 . . Watcher 1 | . 1 . . Swarmer 3 | . . 3 . Grunt 9 | . 4 3 2 Sentry 2 | . . 2 . Best Kill Streak 3 | 2 3 3 1 Combat Bots Only 3 | . 1 3 1 Max Kills in Single Turn 1 | 1 1 1 1 Gunslinging . | . . . . Exploded . | . . . . Melee . | . . . . Uniques/NPCs Destroyed . | . . . . Combat | -11 -10 -9 -9 -------- Run | Jun Mat Mat Min Damage Taken 1562 | . 207 682 673 Core 488 | . 25 113 350 Absorbed by Shields . | . . . . Core Remaining (%) 95 | 100 90 . . Volleys Fired 99 | 11 29 31 28 Largest 2 | 2 2 2 1 Hottest 80 | 40 70 80 60 Shots Fired 163 | 15 58 62 28 Gun 128 | 15 58 55 . Cannon 35 | . . 7 28 Launcher . | . . . . Special . | . . . . Kinetic 82 | 15 29 31 7 Thermal 81 | . 29 31 21 Explosive . | . . . . Electromagnetic . | . . . . Robot Hit Streak 11 | 2 11 10 5 Robot Miss Streak 4 | 2 2 4 1 Penetration Max . | . . . . Secondary Targets 1 | . 1 . . Max Gunslinging Chain 1 | . 1 . . Shots Hit Robots 104 | 8 39 41 16 Core Hits 43 | 4 20 14 5 Critical Kills . | . . . . Critical Parts Destroyed . | . . . . Critical Strikes 7 | . 4 3 . Burn 7 | . 4 3 . Melee Attacks . | . . . . Impact . | . . . . Slashing . | . . . . Piercing . | . . . . Sneak Attacks . | . . . . Combat Hostiles . | . . . . Follow-up Attacks . | . . . . Damage Inflicted 1339 | 72 419 570 278 Guns 955 | 72 419 464 . Cannons 384 | . . 106 278 Explosions . | . . . . Melee . | . . . . Ramming . | . . . . Kinetic 484 | 72 146 266 . Thermal 855 | . 273 304 278 Explosive . | . . . . Electromagnetic . | . . . . Impact . | . . . . Slashing . | . . . . Piercing . | . . . . Highest Corruption . | . . . . Average Corruption . | . . . . Corruption Purged . | . . . . Corruption Blocked . | . . . . Overload Shots . | . . . . Overflow Damage 12 | . . . 12 Projectiles 12 | . . . 12 Explosions . | . . . . Melee . | . . . . Knockbacks . | . . . . Impact . | . . . . Kinetic . | . . . . Secondary . | . . . . Self-Inflicted Damage . | . . . . Shots . | . . . . Rammed . | . . . . Targets Rammed . | . . . . Kicked . | . . . . Crushed . | . . . . Highest Temperature 312 | . 162 216 312 Average Temperature 66 | . 50 50 114 Received Heat Transfer 567 | . 132 348 87 Siege Activations . | . . . . Robots Corrupted . | . . . . Combat Hostiles . | . . . . Parts Fried . | . . . . Impact Corruptions . | . . . . Robots Melted . | . . . . Combat Hostiles . | . . . . Parts Melted 5 | . 1 3 1 Heat Transferred 2738 | . 1110 1036 592 Parts Sabotaged . | . . . . Parts Stolen . | . . . . Parts Stripped . | . . . . Power Chain Reactions . | . . . . Missiles Intercepted . | . . . . Alert | -11 -10 -9 -9 ------- Run | Jun Mat Mat Min Peak Influence 318 | 10 165 318 108 Initial 69 | . 6 69 42 Average 104 | 2 52 180 77 Maximum Alert Level 1 | . . 1 . Low Security (%) 84 | 100 100 61 100 Level 1 15 | . . 38 . Level 2 . | . . . . Level 3 . | . . . . Level 4 . | . . . . Level 5 . | . . . . High Security . | . . . . Max Security . | . . . . Squads Dispatched 2 | . 1 1 . Investigation 1 | . . 1 . Extermination . | . . . . Reinforcement 1 | . 1 . . Assault . | . . . . Garrison . | . . . . Intercept . | . . . . Searches Triggered . | . . . . Construction Impeded . | . . . . Haulers Reinforced . | . . . . Active Scanning Responses . | . . . . Cargo Convoy Interrupts . | . . . . Stealth | -11 -10 -9 -9 --------- Run | Jun Mat Mat Min Distress Signals 5 | . 2 3 . Communications Jammed . | . . . . Distress Signals . | . . . . Times Spotted 36 | . 8 19 9 Peak Tracking Total 8 | . 2 8 6 Tactical Retreats 2 | . 1 . 1 Traps | -11 -10 -9 -9 ------- Run | Jun Mat Mat Min Traps Triggered . | . . . . Indirectly . | . . . . Trap Hack Attempts . | . . . . Triggered . | . . . . Disarmed . | . . . . Reprogrammed . | . . . . Reused . | . . . . Traps Extracted . | . . . . Installed . | . . . . Triggered . | . . . . Machines | -11 -10 -9 -9 ---------- Run | Jun Mat Mat Min Machines Disabled . | . . . . Max in Single Turn . | . . . . Machines Repaired . | . . . . Machines Sabotaged . | . . . . Overloaded Fab Kills . | . . . . Hacking | -11 -10 -9 -9 --------- Run | Jun Mat Mat Min Machines Accessed 5 | . 2 3 . Terminals 4 | . 2 2 . Fabricators . | . . . . Repair Stations . | . . . . Recycling Units 1 | . . 1 . Scanalyzers . | . . . . Garrison Access . | . . . . Total Hacks 16 | . 7 9 . Successful 8 | . 3 5 . Failed 8 | . 4 4 . Catastrophic 1 | . . 1 . Database Lockouts . | . . . . Manual 7 | . 3 4 . Terminals 13 | . 7 6 . Fabricators . | . . . . Repair Stations . | . . . . Recycling Units 3 | . . 3 . Scanalyzers . | . . . . Garrison Access . | . . . . Terminal Hacks 8 | . 3 5 . Prototype ID Bank 1 | . 1 . . Branch Access Points 1 | . . 1 . Alert Level 2 | . 1 1 . Locate Traps 1 | . . 1 . Zone Layout 3 | . 1 2 . Fabricator Hacks . | . . . . Repair Station Hacks . | . . . . Recycling Unit Hacks . | . . . . Scanalyzer . | . . . . Garrison Access Hacks . | . . . . Unauthorized Hacks . | . . . . Terminals . | . . . . Fabricators . | . . . . Repair Stations . | . . . . Recycling Units . | . . . . Scanalyzers . | . . . . Garrison Access . | . . . . Data Cores Recovered . | . . . . Used . | . . . . Hacking Detections 5 | . 2 3 . Full Trace Events 1 | . . 1 . Feedback Events . | . . . . Feedback Blocked . | . . . . Robot Schematics Acquired . | . . . . Robots Built . | . . . . Authchips . | . . . . Time . | . . . . Total Robot Build Rating . | . . . . Part Schematics Acquired . | . . . . Parts Built . | . . . . Authchips . | . . . . Time . | . . . . Total Part Build Rating . | . . . . Parts Repaired . | . . . . Time . | . . . . Parts Recycled . | . . . . Recycled Matter . | . . . . Retrieved Matter . | . . . . Retrieved Components . | . . . . Parts Scanalyzed . | . . . . Part Schematics Acquired . | . . . . Parts Damaged . | . . . . Bothacking | -11 -10 -9 -9 ------------ Run | Jun Mat Mat Min Used RIF Installer . | . . . . Robots Hacked . | . . . . Non-combat . | . . . . Combat . | . . . . Robot Hacks Applied . | . . . . Relay Couplers Released . | . . . . Fabnet Peak Effective % . | . . . . Robots Rewired . | . . . . Allies Hacked . | . . . . Hacks Repelled . | . . . . Allies | -11 -10 -9 -9 -------- Run | Jun Mat Mat Min Total Allies . | . . . . Largest Group . | . . . . Highest-Rated Group . | . . . . Highest-Rated Ally . | . . . . Total Orders . | . . . . Ally Attacks . | . . . . Total Damage . | . . . . Kills . | . . . . Allies Corrupted . | . . . . Allies Melted . | . . . . Intel | -11 -10 -9 -9 ------- Run | Jun Mat Mat Min Robot Analysis Total . | . . . . Derelict Logs Recovered 1 | . . . 1 Drone Launches . | . . . . Drone Recoveries . | . . . . Exploration | -11 -10 -9 -9 ------------- Run | Jun Mat Mat Min Turns Passed 1046 | 82 360 419 185 Spaces Moved 536 | 48 184 190 114 Core 3 | 3 . . . Treads 17 | . . 17 . Legs . | . . . . Wheels 516 | 45 184 173 114 Hover . | . . . . Flight . | . . . . Fastest Speed 50 | 50 80 80 85 Average Speed 85 | 78 80 91 88 Slowest Speed 160 | 80 80 160 105 Overloaded Moves . | . . . . Propulsion Burnouts . | . . . . Robots Hopped . | . . . . Cave-ins Triggered 1 | . . . 1 Exploration Rate (%) 17 | 4 30 20 17 Regions Visited 3 Branch Regions 1 Pre-discovered Areas . | . . . . Known Exits Taken 1 | . . 1 . Unknown Exits Taken 2 | 1 1 . . Scrap Searched 1 | . . . 1 Spaces Dug 3 | . . . 3 Terrain Destroyed 3 | . . . 3 Melee . | . . . . Projectile 3 | . . . 3 AOE . | . . . . Terrain Rammed . | . . . . Walls Destroyed . | . . . . Machines Disabled . | . . . . Actions | -11 -10 -9 -9 --------- Run | Jun Mat Mat Min Total 960 | 78 346 368 168 Wait 251 | . 124 117 10 Move 532 | 47 183 189 113 Hop . | . . . . Pick Up 30 | 13 3 7 7 Fast Attach 3 | 1 . 1 1 Attach 17 | 5 1 4 7 Detach . | . . . . Swap 19 | 1 2 14 2 Drop 9 | . 4 5 . Fire 99 | 11 29 31 28 Melee . | . . . . Ram . | . . . . Kick . | . . . . Crush . | . . . . Escape Stasis . | . . . . Rewire . | . . . . Trap . | . . . . Miscellaneous . | . . . . Route ------- -11/Junkyard -10/Materials (discovered 2 exits: *Mat / [*Min]) -9/Materials -9/Mines History --------- Turn | Location | Event 25 | -11/Junkyard | Discovered new exit (range 16) 83 | -11/Junkyard | Entered Materials 228 | -10/Materials | Discovered new exit (range 7) 313 | -10/Materials | Build established: Mutant 439 | -10/Materials | Discovered new exit (range 6) 443 | -10/Materials | Entered another Materials area 443 | -9/Materials | Evolved 2 slots: Utility x2 627 | -9/Materials | Identified exit to Mines 713 | -9/Materials | Build established: Scavenger-Skirmisher 862 | -9/Materials | Entered Mines 863 | -9/Mines | Assembled infested the area 892 | -9/Mines | Lost 3 parts (1n1u1w) 924 | -9/Mines | Learned Materials interactive machine intel 971 | -9/Mines | Core integrity fell below 50% 989 | -9/Mines | Core integrity fell below 20% 1029 | -9/Mines | Lost 5 parts (1p3n1w) 1047 | -9/Mines | Crushed by falling debris 1047 | -9/Mines | Smashed by cave-in Last Messages --------------- 00972_ Beam Cannon severed. 00975_ Acquired Beam Cannon. 00978_ Arm. Wheel destroyed. 00981_ Beam Cannon destroyed. 00995_ Acquired 10 matter. 00997_ Acquired Wheel. 00998_ Wheel destroyed. 01001_ Acquired Com. Wheel. 01003_ as-38659 destroyed. 01011_ as-63554 destroyed. 01018_ Searching scrap... 01018_ Found Imp. Light Cannon. 01018_ Found 40 Matter. 01019_ Acquired 25 matter. 01022_ Acquired Imp. Light Cannon. 01024_ Acquired 10 matter. 01046_ The unstable cave ceiling collapses. 01047_ Crushed by falling debris. 01047_ System Shield destroyed. 01047_ System corrupted by crushing effect (+5). Map ----- +----------------------------------------------------+ | | | | | | | | | | | | | | | | | | | | | | | | | | | | | ?????##??##??????????????####????###?#?#?? | | ????????????#??#######??????#?#?#?????#??# | | ???????#?#??#### ##?#??????#?#?????#### | | ????????##???## #?##????????####?## | | ????????????## #??##?###??## ### | | ????#???#????# ############ | | ???#???#???#??# | | ?????#??????#?## % | | ???#???????##??## ########### | | ????#?#?#?????#?#######?##?#?## | | ??#???#???#??#??# ##????#?#### # | | ???#????#?##?#?##@#??###?#### ## | | ?????????????#??###?#?????### *=### | | ???#????###?#????#???##????## %#?# | | ??#?????????#?#? ????##???#?## !=#?# | | ????????#????#??? ???###?#?## #?## | | ?????#??##???##?#?? ???#?#?#?### #??? | | ?????##??#?????#????????##?#??## ##??? | | ?????????#?#???????????##???##?#= ###??? | | ???????????? ? ???????####?#?#!%=%##?? | | ???????????????? ??????##???##!|= #?#???? | | ?????????????##??? ?? ?#?##???##*%##????#? | | ????????????? ??????? ???##????#%!#??????? | | ??????????????????????????#?#??# #??#???? | | ???????????????#?#????????#? ? !*??????? | | ?????????????????????????#????## #??????? | | ???????????????????????????????# %#??????? | | ??????????????????????????????## ???????? | | ???????????????????????????????# ??#????? | | ??????????????????????????????? ????????? | | ????????????????????????????????????????#? | | ?????????????????????????????????????????? | | ?????????????????????????????????????????? | | ?????????????????????????????????????????? | | ?????????????????????????????????????????? | | ?????????????????????????????????????????? | +----------------------------------------------------+ Best States ------------- Heat Dissipation 28 Energy Generation 14 Energy Capacity 250 Matter Stores 300 Matter Capacity 300 Sight Range 16 Robot Scan Range 14 Terrain Scan Range 16 Terrain Scan Density 85 Evasion (%) 44 Recoil Reduction 2 Defensive Hacking 10 Item Schematics ----------------- None Robot Schematics ------------------ None Fabricated ------------ Nothing Alien Tech Used ----------------- None Achievements -------------- None Challenges ------------ None Game ------ Seed RiotTachyonCharger Manual? 0 Play Time 00:18:42 Cumulative 74.8 hours Start 2023.07.31 @ 18:57:04 End 2023.07.31 @ 22:06:03 Sessions 3 Manual Loads 0 Difficulty Rogue Special Mode None Game No. 96 Rogue 96 Adventurer 0 Explorer 0 Win Type - Total 0 Types 0/0/0/0/0/0/0/0/0 Lore% 26 Gallery% 41 Achievement% 28 Wizard Run 0 Options --------- ASCII 0 Keyboard 0 Movement Mouse Keybinds 0 Fullscreen 1 Font 24/Smallcaps Map View 76x50 Tactical HUD 1 Map Filters NONE Filters NONE Steam 1 RUN: 811f67b1-3990-4c2c-98ef-bb9d2f264bac